[Event "4th Tata Steel India Rapid Open 2022"]
[Site "Kolkota"]
[Date "2022.11.29"]
[Round "3.4"]
[White "Sethuraman, S.P."]
[Black "Maghsoodloo, Parham"]
[Result "0-1"]
[ECO "B90"]
[WhiteElo "2643"]
[BlackElo "2720"]
[Annotator "TA"]
[PlyCount "150"]
[EventDate "2022.11.29"]
[EventType "tourn"]
[EventCountry "IND"]
[SourceTitle "playchess.com"]
[Source "ChessBase"]
[SourceQuality "1"]
[TimeControl "900+10"]

{[%evp 15,150,0,10,0,46,30,31,45,45,0,100,106,114,117,127,99,116,22,123,29,16,19,36,0,0,0,27,6,5,20,14,18,17,0,0,-56,-74,-65,-77,-137,-141,-151,-131,-123,-148,-144,-134,-142,-129,-208,-204,-206,-204,-204,-214,-418,-403,-403,-383,-496,-508,-588,-574,-553,-344,-341,-341,-339,-331,-328,-322,-357,-360,-364,-225,-225,-225,-225,-225,-225,-225,-225,-210,-210,-210,-350,-345,-345,-345,-2855,-1016,-4152,-4152,-4152,-4145,-4145,-4145,-4141,-4141,-4141,-4137,-29948,-29953,-29950,-29953,-29951,-29954,-29951,-29946,-29957,-29960,-29960,-29960,-29966,-29967,-29972,-29973,-29971,-29972,-29972,-29974,-29967,-29975,-29979,-29979,-29981,-29982,-29986,-29987,-29987,-29988,-29993,-29994,-29994,-29995,-29995,-29996]} 1. e4 {[%emt 0:00:01]} c5 {[%emt 0:00:01]} 2. Nf3 {[%emt 0:00:02]} d6 {[%emt 0:00:01]} 3. d4 {[%emt 0:00:02]} cxd4 {[%emt 0:00:02]} 4. Nxd4 {[%emt 0:00:02]} Nf6 {[%emt 0:00:01]} 5. Nc3 {[%emt 0:00:02]} a6 {[%emt 0:00:01]} 6. Be3 {[%emt 0:00:04]} e5 {[%emt 0:00:04]} 7. Nb3 {[%emt 0:00:02]} Be6 {[%emt 0:00:02]} 8. Qd2 {[%emt 0:00:06]} Nbd7 {[%emt 0:00:10]} 9. O-O-O {[%emt 0:00:06] is now debated instead of 9.f3. B90: Sicilian Najdorf: Unusual White 6th moves, 6 Be3 Ng4 and 6 Be3 e5.} Rc8 {[%emt 0:00:16]} (9... Be7 $11 {should be considered.}) 10. h3 $14 {[%emt 0:01:40]} Be7 {[%emt 0:01:14]} 11. g4 {[%emt 0:00:13][%cal Bg2g4,Bg4g5][%mdl 32] White is slightly better.} O-O {[%emt 0:00:06]} 12. g5 {[%emt 0:01:54] Against b5} Nh5 {[%emt 0:00:02]} (12... Nxe4 $1 $11 {remains equal.} 13. Nxe4 d5) 13. Be2 $16 {[%emt 0:00:23]} Nf4 {[%emt 0:00:03]} 14. Bxf4 {[%emt 0:00:04]} exf4 {[%emt 0:00:01]} 15. h4 {[%emt 0:00:07] [#]} Ne5 $5 $146 {[%emt 0:00:54][%mdl 8] New and interesting.} ({Predecessor:} 15... Nb6 16. Nd5 Nxd5 17. exd5 Bf5 18. Bd3 Bxd3 19. Qxd3 Re8 20. Nd2 Bf8 21. Ne4 Qc7 {1-0 (37) Popov,I (2596)-Kenneskog,T (2332) Novi Sad 2016}) 16. Nd4 {[%emt 0:01:19] Inhibits f3.} (16. Qxf4 f6) ({White should try} 16. f3 $16) 16... g6 {[%emt 0:00:58]} (16... Qa5 $1 $11 {keeps the balance.}) 17. Nd5 {[%emt 0:00:56]} (17. Qxf4 $16 {aiming for Qe3.} Qa5 18. Nxe6 fxe6 19. Qg3) 17... Bxd5 $11 {[%emt 0:00:02]} 18. exd5 {[%emt 0:00:02]} h6 $1 {[%emt 0:00:04]} 19. Qxf4 {[%emt 0:03:18]} hxg5 {[%emt 0:00:02]} 20. Qe4 {[%emt 0:01:46] Hoping for hxg5.} Re8 {[%emt 0:00:33]} 21. hxg5 {[%emt 0:00:38]} Bxg5+ {[%emt 0:00:02]} 22. f4 {[%emt 0:00:08]} Nd7 $1 {[%emt 0:02:09]} 23. Ne6 {[%emt 0:03:36]} Bf6 {[%emt 0:00:04] Threatens to win with ...Qa5.} 24. Rdg1 {[%emt 0:00:35]} (24. Bd3 $5 {[%cal Rd1g1]}) 24... Nf8 {[%emt 0:00:03][%cal Rf8e6]} 25. Bc4 {[%emt 0:01:25]} (25. f5 $11 Re7 26. Qf3 fxe6 27. fxe6) 25... Rxc4 $15 {[%emt 0:01:41] Dancing on a razor blade.} (25... fxe6 26. Rxg6+ (26. dxe6 Re7 $11) 26... Nxg6 27. Qxg6+ Bg7 28. dxe6 $1 $11) 26. Qxc4 {[%emt 0:00:01]} fxe6 {[%emt 0:00:02] Black keeps a firm grip on the game.} 27. dxe6 {[%emt 0:00:01]} (27. Qb3 $142) 27... d5 $17 {[%emt 0:00:09]} 28. Qd3 {[%emt 0:00:30]} Rxe6 {[%emt 0:00:17]} 29. f5 {[%emt 0:00:17] [#]} Rb6 {[%emt 0:00:09]} 30. c3 {[%emt 0:00:10]} g5 {[%emt 0:00:08]} 31. Kb1 {[%emt 0:00:23]} d4 {[%emt 0:00:55]} 32. c4 {[%emt 0:00:03]} (32. cxd4 $17 Qd7 33. Rd1 (33. Qc4+ $2 Kg7 $19)) 32... Qe7 {[%emt 0:00:10]} 33. Re1 {[%emt 0:00:05]} Qb4 {[%emt 0:00:03][%csl Gb6][%cal Rb4b2]} 34. Re2 {[%emt 0:00:27]} Qc3 {[%emt 0:00:02]} 35. Rd1 {[%emt 0:00:17]} (35. Qxc3 dxc3 36. b3) 35... Qxd3+ $19 {[%emt 0:00:10]} 36. Rxd3 {[%emt 0:00:01]} Nd7 {[%emt 0:00:01] Inhibits c5.} 37. Rg3 {[%emt 0:00:14]} Ne5 {[%emt 0:00:18]} 38. c5 {[%emt 0:00:12]} Rb5 {[%emt 0:00:01]} 39. Re4 {[%emt 0:00:06]} d3 {[%emt 0:00:09]} 40. b4 {[%emt 0:00:12] [#]} a5 $1 {[%emt 0:00:19]} 41. a3 {[%emt 0:00:01]} axb4 {[%emt 0:00:16]} 42. axb4 {[%emt 0:00:01]} b6 {[%emt 0:00:06]} 43. c6 {[%emt 0:00:13]} Nxc6 {[%emt 0:00:03]} 44. Rxd3 {[%emt 0:00:02]} Nxb4 {[%emt 0:00:46]} (44... Rxf5 $2 {loses.} 45. Rd6 Ne7 46. Rxb6 $19) 45. Rb3 {[%emt 0:00:12] [#]} Nd5 {[%emt 0:00:02]} 46. Rxb5 {[%emt 0:00:11]} Nc3+ {[%emt 0:00:01]} 47. Kc1 {[%emt 0:00:12] Black must now prevent Rbb4.} Nxb5 {[%emt 0:02:05]} ({And not} 47... Nxe4 48. Rxb6 Kf7 49. Kc2) 48. Re6 {[%emt 0:00:11][%cal Oe6b6]} Kf7 {[%emt 0:01:54] Strongly threatening ...Nd4.} 49. Rxb6 {[%emt 0:00:01]} Nd4 {[%emt 0:00:01]} 50. Rb7+ {[%emt 0:00:01]} (50. Kd2 {was the only chance.}) 50... Be7 {[%emt 0:00:03]} 51. Kd2 {[%emt 0:00:10]} Nxf5 {[%emt 0:00:15]} 52. Ke2 $2 {[%emt 0:00:15]} (52. Rb6) 52... g4 {[%emt 0:00:02]} 53. Rb8 {[%emt 0:00:43]} Bd6 {[%emt 0:00:36]} 54. Rb7+ {[%emt 0:00:09]} Kf6 {[%emt 0:00:02]} 55. Ra7 {[%emt 0:00:14]} Be5 {[%emt 0:00:57]} 56. Ra5 {[%emt 0:00:06]} Bd4 {[%emt 0:00:29]} 57. Kd3 {[%emt 0:00:15]} g3 {[%emt 0:00:27] ( -> ...g2)} 58. Ke4 {[%emt 0:00:04]} g2 {[%emt 0:00:01] Black mates.} 59. Rxf5+ {[%emt 0:00:03] KR-KB} Kg6 {[%emt 0:00:02]} 60. Rd5 {[%emt 0:00:10]} g1=Q {[%emt 0:00:03][%csl Gd4][%cal Rg1e3]} ({Inferior is} 60... g1=B 61. Rxd4 Bxd4 $11) 61. Rxd4 {[%emt 0:00:02] KQ-KR} Qe1+ {[%emt 0:00:08]} 62. Kd5 {[%emt 0:00:04]} Kf5 {[%emt 0:00:03]} 63. Kc4 {[%emt 0:00:05]} Qe6+ {[%emt 0:00:20]} 64. Kc3 {[%emt 0:00:16]} Ke5 {[%emt 0:00:05]} 65. Rd3 {[%emt 0:00:06]} Qc6+ {[%emt 0:00:10]} 66. Kd2 {[%emt 0:00:05]} Qc5 {[%emt 0:00:57]} 67. Re3+ {[%emt 0:00:37]} Kd4 {[%emt 0:00:02]} 68. Rd3+ {[%emt 0:00:04]} Ke4 {[%emt 0:00:01]} 69. Rc3 {[%emt 0:00:12]} Qf2+ {[%emt 0:00:03]} 70. Kc1 {[%emt 0:00:06]} Kd4 {[%emt 0:00:03]} 71. Rc8 {[%emt 0:00:25]} Qf5 {[%emt 0:00:37]} 72. Rc2 {[%emt 0:00:05]} Kd3 {[%emt 0:00:04]} 73. Kb2 {[%emt 0:00:12]} Qb5+ {[%emt 0:00:43]} 74. Kc1 {[%emt 0:00:02]} Qa4 {[%emt 0:00:11][%cal Ra4a1]} 75. Rd2+ {[%emt 0:00:21]} Kc3 {[%emt 0:00:01] Weighted Error Value: White=0.40/Black=0.13 (very precise)} 0-1

[Event "4th Tata Steel India Rapid Open 2022"]
[Site "Kolkota"]
[Date "2022.11.29"]
[Round "3.5"]
[White "So, Wesley"]
[Black "Mamedyarov, Shakhriyar"]
[Result "0-1"]
[ECO "E11"]
[WhiteElo "2760"]
[BlackElo "2741"]
[Annotator "TA"]
[PlyCount "70"]
[EventDate "2022.11.29"]
[EventType "tourn"]
[EventCountry "IND"]
[SourceTitle "playchess.com"]
[Source "ChessBase"]
[SourceQuality "1"]
[TimeControl "900+10"]

{[%evp 12,70,33,32,37,29,31,0,0,0,0,0,0,-233,-239,-240,-235,-236,-229,-244,-228,-243,-229,-715,-662,-963,-801,-760,-783,-795,-798,-779,-757,-745,-743,-735,-688,-662,-650,-749,-737,-687,-533,-521,-534,-529,-528,-631,-632,-695,-695,-864,-860,-827,-800,-772,-591,-581,-566,-1390,-796]} 1. d4 {[%emt 0:00:05]} Nf6 {[%emt 0:00:02]} 2. Nf3 {[%emt 0:00:03]} e6 {[%emt 0:00:09]} 3. c4 {[%emt 0:00:02]} Bb4+ {[%emt 0:00:04]} 4. Nbd2 {[%emt 0:00:45]} d5 {[%emt 0:00:06]} 5. Qa4+ {[%emt 0:00:12]} Nc6 {[%emt 0:00:03]} 6. a3 {[%emt 0:00:04]} Be7 {[%emt 0:00:09]} 7. e3 {[%emt 0:00:15]} a5 {[%emt 0:00:21][%cal Ba7a5,Ba5b4,Bb4a3][%mdl 32] E11: Bogo-Indian.} 8. b4 {[%emt 0:01:10]} (8. Bd3 {simplifies} O-O 9. Qc2 a4 10. O-O) 8... dxc4 {[%emt 0:00:48][%cal Ob7b5] [#]} 9. Nxc4 $146 {[%emt 0:01:48]} ({Predecessor:} 9. b5 Nb8 10. Nxc4 O-O 11. Bb2 c5 12. dxc5 Bxc5 13. Rd1 Qe7 14. Bd3 Bd7 15. Nce5 {0-1 (29) Aditya,M (2490)-Jumabayev,R (2628) Sharjah 2022}) 9... b5 $1 {[%emt 0:01:16] The position is equal.} 10. Qxb5 {[%emt 0:01:05]} Bd7 {[%emt 0:00:40][%cal Rc6b4] Threatens to win with ...Nxb4!} 11. Qg5 {[%emt 0:00:39]} ({Of course not} 11. bxa5 Nb4 $1 $15 {[%mdl 512]}) 11... axb4 {[%emt 0:01:33]} 12. Qxg7 {[%emt 0:00:02]} (12. Bd3 $11 {and White is okay.}) 12... Rg8 $19 {[%emt 0:00:03]} 13. Qh6 {[%emt 0:00:02]} bxa3 {[%emt 0:01:16]} 14. Be2 {[%emt 0:00:01]} Rxg2 {[%emt 0:02:09]} 15. Nfe5 {[%emt 0:03:21]} Nxe5 {[%emt 0:00:22]} 16. Nxe5 {[%emt 0:00:02] [#]} Rg8 $1 {[%emt 0:01:54]} 17. Bf3 $2 {[%emt 0:01:09] [#]} (17. Bh5 Nxh5 18. Qxh7) 17... Qb8 $1 {[%emt 0:01:19][%cal Oa3a2] Hoping for ...a2! Black is clearly winning.} 18. e4 {[%emt 0:03:28]} (18. Nxd7 Kxd7) 18... Qb3 {[%emt 0:01:04] White must now prevent ...Qc3+.} 19. Qe3 {[%emt 0:00:24]} Bb4+ {[%emt 0:00:26]} 20. Bd2 {[%emt 0:00:01]} Qb2 {[%emt 0:00:25]} 21. Nxd7 {[%emt 0:00:15]} Nxd7 {[%emt 0:02:45]} (21... Qxa1+ 22. Ke2 Qb2 23. Nxf6+ Ke7 24. Nxg8+ Rxg8 25. Qf4 $11) 22. Bxb4 {[%emt 0:01:58]} Qxa1+ {[%emt 0:00:09]} 23. Ke2 {[%emt 0:00:01]} Qb2+ {[%emt 0:00:33]} 24. Qd2 {[%emt 0:00:02]} c5 {[%emt 0:00:30]} 25. e5 {[%emt 0:00:18]} Rb8 {[%emt 0:00:22][%cal Ba8b8,Bb8b3,Bb3b5,Bb5d5][%mdl 32]} 26. Bc3 {[%emt 0:00:03]} Qxd2+ {[%emt 0:00:06]} 27. Kxd2 {[%emt 0:00:01]} cxd4 {[%emt 0:00:09]} 28. Bxd4 {[%emt 0:00:02]} Rb3 {[%emt 0:00:08]} 29. Rc1 {[%emt 0:01:14]} Ke7 {[%emt 0:00:26]} ({Stronger than} 29... Rxf3 30. Rc8+ Ke7 31. Rxg8 $17) (29... Nxe5 30. Bxe5 Rg5 31. Bd1 $17) 30. Bd1 {[%emt 0:00:02]} Rb5 {[%emt 0:00:10][%cal Oa3a2]} 31. Rc7 {[%emt 0:00:07]} Rd5 {[%emt 0:00:23]} 32. Ke3 {[%emt 0:00:01]} Rb8 {[%emt 0:00:24]} 33. Bc2 {[%emt 0:00:24]} Kd8 {[%emt 0:00:04]} 34. Ra7 {[%emt 0:00:02]} Nxe5 {[%emt 0:00:04]} 35. Be4 {[%emt 0:00:09]} Ra5 {[%emt 0:00:12] White got outplayed after the opening.   Weighted Error Value: White=0.77/Black=0.22 (precise)} 0-1

[Event "4th Tata Steel India Rapid Open 2022"]
[Site "Kolkota"]
[Date "2022.11.30"]
[Round "4.1"]
[White "Maghsoodloo, Parham"]
[Black "So, Wesley"]
[Result "1-0"]
[ECO "D35"]
[WhiteElo "2720"]
[BlackElo "2760"]
[Annotator "TA"]
[PlyCount "103"]
[EventDate "2022.11.29"]
[EventType "tourn"]
[EventCountry "IND"]
[SourceTitle "playchess.com"]
[Source "ChessBase"]
[SourceQuality "1"]
[TimeControl "900+10"]

{[%evp 18,103,21,21,29,27,25,26,29,29,31,7,37,0,30,30,30,30,30,30,30,30,34,49,66,9,9,15,59,24,29,20,40,0,0,0,52,51,63,24,15,0,49,47,47,48,44,47,47,46,44,0,14,14,14,14,14,10,50,50,53,50,47,56,56,0,207,207,213,17,213,213,213,213,216,68,660,640,583,502,5114,5036,2153,2151,7026,694,6616,6616]} 1. d4 {[%emt 0:00:01] Baburin,Alexander} Nf6 {[%emt 0:00:02]} 2. c4 {[%emt 0:00:02]} e6 {[%emt 0:00:02]} 3. Nc3 {[%emt 0:00:02]} d5 {[%emt 0:00:07]} 4. cxd5 {[%emt 0:00:01]} exd5 {[%emt 0:00:01]} 5. Bg5 {[%emt 0:00:03]} c6 {[%emt 0:00:02]} 6. e3 {[%emt 0:00:04]} Bf5 {[%emt 0:00:02]} 7. Qf3 {[%emt 0:00:02]} Bg6 {[%emt 0:00:01]} 8. Bxf6 {[%emt 0:00:01]} Qxf6 {[%emt 0:00:03]} 9. Qxf6 {[%emt 0:00:02]} gxf6 {[%emt 0:00:02]} 10. h4 {[%emt 0:00:18]} h5 {[%emt 0:00:03] D35: Queen's Gambit Declined: Exchange Variation.} 11. Nh3 {[%emt 0:00:03]} Nd7 {[%emt 0:00:07]} 12. Nf4 {[%emt 0:00:02]} Bd6 {[%emt 0:00:02] White has an edge.} 13. g3 {[%emt 0:00:02]} (13. Kd2 {keeps more tension.} Nb6 14. g3 Kd7 15. Rc1) 13... Nb6 {[%emt 0:00:03]} 14. Be2 {[%emt 0:00:29]} a5 {[%emt 0:00:01]} (14... Bxf4 {simplifies} 15. gxf4 Nc8 16. b4 a6) 15. a3 {[%emt 0:00:03]} a4 {[%emt 0:00:10]} 16. Rc1 {[%emt 0:00:18] [#]} Kd7 $146 {[%emt 0:00:26]} ({Predecessor:} 16... Ke7 17. f3 Bf5 18. Kf2 Be6 19. Rhe1 f5 20. Bd3 Nd7 21. e4 fxe4 22. fxe4 dxe4 23. Bxe4 {1-0 (38) Rustemov,A (2573)-Khenkin,I (2633) Polanica Zdroj 1999 CBM 073 [Baburin,Alexander]}) 17. f3 {[%emt 0:00:54]} Rhe8 {[%emt 0:00:37]} 18. Kf2 {[%emt 0:00:00]} Re7 {[%emt 0:00:00]} 19. Rhe1 {[%emt 0:00:00][%cal Oe3e4]} f5 {[%emt 0:03:27] Against e4} 20. Bd3 {[%emt 0:00:35]} Bxf4 {[%emt 0:00:48]} 21. exf4 {[%emt 0:00:11]} (21. gxf4 $14 Rae8 22. Re2) 21... Rxe1 $11 {[%emt 0:01:47]} 22. Rxe1 {[%emt 0:00:01]} Kd6 {[%emt 0:00:02]} 23. Nd1 {[%emt 0:00:31]} Nc4 {[%emt 0:02:55]} 24. Bxc4 {[%emt 0:00:03]} dxc4 {[%emt 0:00:01][%mdl 4096] Endgame KRB-KRN} 25. Re5 {[%emt 0:00:21]} (25. Ne3 $5 {[%cal Re3c4]} b5 26. Rh1 $11) 25... f6 {[%emt 0:02:16]} 26. Rc5 {[%emt 0:00:02]} Bf7 {[%emt 0:00:23]} (26... b5 $11) 27. Rxf5 $14 {[%emt 0:02:51]} Ke7 {[%emt 0:00:01]} 28. Rc5 {[%emt 0:00:01]} (28. g4 $5 {[%cal Rg4g5]}) 28... Kd6 {[%emt 0:00:01]} 29. Rf5 {[%emt 0:03:36]} Ke7 {[%emt 0:00:01]} 30. g4 $1 {[%emt 0:00:01]} Rd8 {[%emt 0:01:27]} 31. Ke3 $1 {[%emt 0:01:43]} ({Inferior is} 31. gxh5 b6 32. Ne3 Be6 $19) 31... hxg4 {[%emt 0:00:24]} 32. fxg4 {[%emt 0:00:01]} Be6 {[%emt 0:01:07] Prevents g5.} 33. Ra5 {[%emt 0:00:04] [#] Strongly threatening f5.} Bxg4 {[%emt 0:00:09]} 34. Nf2 {[%emt 0:00:01]} Bd7 {[%emt 0:01:11]} 35. Rxa4 {[%emt 0:00:33][%cal Oa4a7]} b5 {[%emt 0:00:01]} 36. Ra7 {[%emt 0:00:01] Black must now prevent f5.} f5 $1 {[%emt 0:00:01]} 37. d5 {[%emt 0:01:53]} c5 {[%emt 0:00:51]} 38. Nh3 {[%emt 0:01:27] Hoping for Ng5.} Rh8 $1 {[%emt 0:00:30]} 39. Ng5 {[%emt 0:00:01][%cal Od5d6] And now d6+! would win.} Rxh4 {[%emt 0:00:01]} 40. Ra6 $1 {[%emt 0:01:50] Threatens to win with d6+.} Rh8 $1 {[%emt 0:02:02]} 41. Nf3 {[%emt 0:00:12]} (41. d6+ $14 Kf6 42. Ra7) 41... Rd8 $2 {[%emt 0:00:19]} (41... Rh1 $11) 42. Ne5 $18 {[%emt 0:00:27] aiming for Ra7.} Be8 {[%emt 0:00:05]} 43. Re6+ {[%emt 0:00:14]} Kf8 {[%emt 0:00:01]} 44. d6 {[%emt 0:00:01]} b4 {[%emt 0:00:09]} 45. axb4 {[%emt 0:02:36]} ({Stronger than} 45. Nxc4 Bf7 46. Rf6 Kg7 47. Rxf5 Bxc4 $11) 45... cxb4 {[%emt 0:00:00] [#]} 46. Rf6+ {[%emt 0:00:01]} (46. Nxc4 Bf7 47. Rf6 Kg7 48. Rxf7+ Kxf7 $11) (46. Kd2 $1 $18) 46... Kg8 $2 {[%emt 0:00:30][%mdl 8192]} (46... Kg7 $14 47. Rxf5 Rxd6) 47. Nxc4 {[%emt 0:00:10] White is clearly winning.} ({Not} 47. Rxf5 c3 $14) 47... Kg7 {[%emt 0:00:19]} 48. Rxf5 {[%emt 0:00:01]} Bf7 {[%emt 0:00:00]} (48... Bd7 $142) 49. Ne5 {[%emt 0:00:03]} Be6 {[%emt 0:00:02]} 50. Rg5+ {[%emt 0:00:01]} Kf6 {[%emt 0:00:01]} 51. Rg6+ {[%emt 0:00:24]} Kf5 {[%emt 0:00:01]} 52. Nc6 {[%emt 0:00:01] Weighted Error Value: White=0.13 (very precise) /Black=0.34} 1-0